bitfinex/quotes_SOLUSD_20260305
["timestamp","ask_amount","ask_price","bid_price","bid_amount"]
[1772722053467,3.08249474,90.334,90.247,2.98987005]
[1772722053680,3.08249474,90.319,90.255,2.98987005]
[1772722053886,3.08249474,90.309,90.247,1.36356071]
[1772722054082,3.08249474,90.289,90.247,1.36356071]
[1772722054269,3.08249474,90.269,90.207,27.71380863]
[1772722054466,3.69383402,90.297,90.204,11.08598288]
[1772722054467,3.08249474,90.259,90.204,11.08598288]
[1772722054672,3.08249474,90.249,90.204,11.08598288]
[1772722055071,3.08249474,90.247,90.196,41.79425161]
[1772722055272,3.08249474,90.269,90.199,2.98987005]
[1772722055470,3.08249474,90.259,90.205,2.98987005]
[1772722056487,3.08249474,90.249,90.196,38.80438156]
[1772722056865,3.08249474,90.239,90.182,11.08862789]
[1772722057189,11.13682751,90.25,90.185,2.98987005]
[1772722057373,14.16087198,90.266,90.196,0.28432314]
[1772722057569,3.08249474,90.319,90.211,2.98987005]
[1772722057885,3.08249474,90.299,90.227,2.98987005]
[1772722058384,3.08249474,90.279,90.217,2.98987005]
[1772722058788,3.08249474,90.291,90.221,2.98987005]
[1772722058980,11.07542363,90.29,90.226,38.79147917]
[1772722059290,11.07378961,90.304,90.234,2.98987005]
[1772722059585,11.13682751,90.34,90.248,2.98987005]
[1772722059795,3.08249474,90.319,90.254,2.98987005]
[1772722059991,3.22465631,90.309,90.256,2.98987005]
[1772722060181,3.22465631,90.309,90.241,2.98987005]
[1772722060585,3.08249474,90.289,90.227,2.98987005]
[1772722061094,3.08249474,90.287,90.228,11.08303409]
[1772722061278,3.08249474,90.287,90.229,2.98987005]
[1772722061475,3.08249474,90.269,90.212,2.98987005]
[1772722061680,3.08249474,90.269,90.218,12.36287865]
[1772722061877,3.08249474,90.269,90.219,2.98987005]
[1772722062085,11.07566897,90.288,90.219,2.98987005]
[1772722062282,11.07566897,90.288,90.221,2.98987005]
[1772722062781,3.08249474,90.29,90.225,2.98987005]
[1772722062993,11.13682751,90.29,90.225,2.98987005]
[1772722063169,38.76355339,90.291,90.218,1.2786183]
[1772722063170,3.08249474,90.279,90.218,1.2786183]
[1772722063376,3.08249474,90.259,90.218,1.2786183]
[1772722063576,3.08249474,90.259,90.218,12.3628611]
[1772722063778,3.08249474,90.259,90.218,1.2786183]
[1772722063977,0.14216157,90.256,90.196,2.98987005]
[1772722064213,0.14216157,90.256,90.143,44.37362624]
[1772722064214,3.08249474,90.229,90.167,2.98987005]
[1772722064381,5.10909883,90.247,90.167,2.98987005]
[1772722064382,0.28432314,90.239,90.167,2.98987005]
[1772722064693,3.08249474,90.24,90.171,2.98987005]
[1772722065201,3.36681788,90.278,90.18,2.98987005]
[1772722065375,11.13682751,90.26,90.186,2.98987005]
[1772722065704,11.13682751,90.26,90.172,271.7029676]
[1772722065705,3.08249474,90.237,90.172,41.8045797]
[1772722065907,3.08249474,90.235,90.173,2.98987005]
[1772722066579,3.08249474,90.235,90.175,2.98987005]
[1772722066794,3.08249474,90.235,90.181,2.98987005]
[1772722066987,3.08249474,90.271,90.189,2.98987005]
[1772722067286,3.08249474,90.298,90.205,2.98987005]
[1772722067507,3.08249474,90.298,90.219,2.98987005]
[1772722067675,55.42392226,90.32,90.22,1.02659329]
[1772722067676,3.08249474,90.289,90.22,1.02659329]
[1772722068094,3.08249474,90.289,90.221,2.98987005]
[1772722068395,59.05878988,90.31,90.221,2.98987005]
[1772722068396,3.08249474,90.339,90.235,2.98987005]
[1772722068597,3.08249474,90.336,90.248,0.28432314]
[1772722068787,3.08249474,90.336,90.251,2.98987005]
[1772722068991,3.08249474,90.336,90.263,3.04948945]
[1772722069291,44.25225274,90.391,90.228,4.82477569]
[1772722069292,3.03263538,90.334,90.271,3.04948945]
[1772722069477,3.03263538,90.329,90.249,3.04948945]
[1772722069674,3.03263538,90.329,90.251,3.04948945]
[1772722069882,3.03263538,90.329,90.262,0.28432314]
[1772722070080,3.03263538,90.329,90.271,3.04948945]
[1772722070282,38.74467259,90.335,90.271,3.04948945]
[1772722070283,11.06990645,90.335,90.271,3.04948945]
[1772722070483,11.06990645,90.335,90.233,1.10824199]
[1772722070484,11.06904872,90.342,90.281,3.04948945]
[1772722070684,11.06708869,90.358,90.291,3.04948945]
[1772722070884,3.03263538,90.357,90.291,3.04948945]
[1772722071181,3.03263538,90.371,90.296,3.04948945]
[1772722071391,3.03263538,90.371,90.302,3.04948945]
[1772722071595,11.13682751,90.36,90.302,3.04948945]
[1772722071900,3.03263538,90.369,90.302,3.04948945]
[1772722072085,38.72581018,90.379,90.302,3.04948945]
[1772722072086,3.03263538,90.355,90.302,3.04948945]
[1772722072397,3.03263538,90.375,90.306,3.04948945]
[1772722072692,3.03263538,90.375,90.312,3.04948945]
[1772722073098,3.03263538,90.367,90.294,11.07493299]
[1772722073287,3.03263538,90.359,90.295,3.04948945]
[1772722073478,3.03263538,90.347,90.294,11.07493299]
[1772722073792,3.03263538,90.345,90.284,3.04948945]
[1772722074180,3.03263538,90.339,90.272,11.07763204]
[1772722074379,3.03263538,90.339,90.273,3.04948945]
[1772722074999,3.03263538,90.339,90.275,3.04948945]
[1772722075184,3.03263538,90.337,90.27,27.69469369]
[1772722075387,3.03263538,90.337,90.266,3.04948945]
[1772722075388,38.74338594,90.338,90.268,3.04948945]
[1772722075591,3.03263538,90.337,90.272,3.04948945]
[1772722076078,3.03263538,90.336,90.272,3.04948945]
[1772722076986,3.03263538,90.329,90.267,38.77385976]
[1772722077300,3.03263538,90.325,90.268,3.04948945]
[1772722077805,44.27316518,90.349,90.267,27.69561412]
[1772722077806,3.03263538,90.383,90.271,0.28432314]
[1772722078016,3.03263538,90.379,90.28,3.04948945]
[1772722078199,3.03263538,90.379,90.296,3.04948945]
[1772722078508,3.03263538,90.377,90.316,3.04948945]
[1772722078675,3.03263538,90.377,90.32,3.04948945]
[1772722078878,3.03263538,90.375,90.32,3.04948945]
[1772722079295,11.06341549,90.388,90.322,3.04948945]
[1772722079597,11.06341549,90.388,90.321,38.75067813]
[1772722079598,3.03263538,90.387,90.331,3.04948945]
[1772722080187,0.28432314,90.38,90.331,3.04948945]
[1772722080391,4.82477569,90.405,90.331,3.04948945]
[1772722080392,0.1,90.41,90.331,3.04948945]
[1772722080595,0.1,90.41,90.339,3.04948945]
[1772722080778,0.1,90.41,90.354,0.28432314]
[1772722080979,0.1,90.41,90.37,0.14216157]
[1772722081180,0.1,90.41,90.372,38.7288098]
[1772722081488,0.1,90.41,90.373,3.04948945]
[1772722081715,0.1,90.41,90.372,38.7288098]
[1772722081716,3.03263538,90.409,90.331,3.04948945]
[1772722081900,3.03263538,90.409,90.334,0.14216157]
[1772722082202,3.03263538,90.405,90.341,3.04948945]
[1772722082581,3.03263538,90.405,90.342,0.28432314]
[1772722082785,3.03263538,90.457,90.352,0.28432314]
[1772722082978,3.03263538,90.457,90.324,337.67326508]
[1772722082979,3.03263538,90.457,90.368,4.82477569]
[1772722083181,47.26216761,90.438,90.37,11.20778069]
[1772722083383,3.03263538,90.419,90.37,11.06561912]
[1772722083587,3.03263538,90.399,90.34,14.11878322]
[1772722083785,3.03263538,90.397,90.34,14.11878322]
[1772722083998,3.03263538,90.395,90.34,41.79201766]
[1772722084179,3.03263538,90.395,90.341,3.04948945]
[1772722084380,3.03263538,90.411,90.341,3.04948945]
[1772722084576,3.03263538,90.411,90.347,3.04948945]
[1772722084780,0.28432314,90.425,90.34,11.06929377]
[1772722084781,3.03263538,90.399,90.34,11.06929377]
[1772722084982,3.03263538,90.399,90.341,3.04948945]
[1772722085183,3.03263538,90.397,90.342,11.06904872]
[1772722085397,3.03263538,90.389,90.329,3.04948945]
[1772722085821,3.03263538,90.389,90.265,44.3138653]
[1772722085822,3.03263538,90.379,90.309,3.04948945]
[1772722086292,3.03263538,90.394,90.309,3.04948945]
[1772722086495,3.03263538,90.379,90.31,0.28432314]
[1772722086680,82.9664373,90.398,90.311,3.04948945]
[1772722086681,11.08114385,90.37,90.311,3.04948945]
[1772722086884,3.03263538,90.349,90.281,3.04948945]
[1772722087387,11.06831363,90.348,90.285,3.04948945]
[1772722087605,38.7390977,90.348,90.291,3.04948945]
[1772722087799,11.06831363,90.348,90.291,3.04948945]
[1772722088001,3.03263538,90.347,90.291,3.04948945]
[1772722088403,0.28432314,90.34,90.291,3.04948945]
[1772722088593,3.03263538,90.335,90.282,11.07640504]
[1772722088799,3.03263538,90.346,90.283,3.04948945]
[1772722089109,0.28432314,90.338,90.275,3.04948945]
[1772722089312,39.02856684,90.336,90.277,3.04948945]
[1772722089723,11.35410705,90.336,90.277,3.04948945]
[1772722090020,0.28432314,90.348,90.279,3.04948945]
[1772722090187,3.03263538,90.369,90.287,3.04948945]
[1772722090384,3.03263538,90.383,90.303,3.04948945]
[1772722090582,3.03263538,90.383,90.316,0.28432314]
[1772722090800,3.03263538,90.383,90.288,1.10756689]
[1772722090801,3.03263538,90.383,90.331,3.04948945]
[1772722091498,3.03263538,90.383,90.322,0.28432314]
[1772722091499,11.06219164,90.398,90.338,0.28432314]
[1772722091690,11.06219164,90.398,90.341,3.04948945]
[1772722092226,3.31695852,90.389,90.332,11.07027409]
[1772722092583,3.31695852,90.389,90.326,3.04948945]
[1772722092584,3.03263538,90.378,90.313,11.07260305]
[1772722092789,3.31695852,90.369,90.313,11.07260305]
[1772722093085,3.31695852,90.359,90.301,11.07407448]
[1772722093504,3.31695852,90.359,90.266,44.3132301]
[1772722093505,3.31695852,90.349,90.291,3.04948945]
[1772722093698,3.31695852,90.349,90.288,11.07566897]
[1772722093886,3.31695852,90.349,90.289,3.04948945]
[1772722094400,11.06647127,90.364,90.289,3.04948945]
[1772722094591,3.03263538,90.363,90.291,3.04948945]
[1772722094797,3.03263538,90.359,90.291,3.04948945]
[1772722095305,0.14216157,90.352,90.291,3.04948945]
[1772722095482,3.03263538,90.345,90.293,3.04948945]
[1772722095809,38.87825807,90.355,90.273,3.04948945]
[1772722095810,3.03263538,90.329,90.273,3.04948945]
[1772722095998,3.03263538,90.348,90.273,3.04948945]
[1772722096309,3.03263538,90.399,90.29,0.28432314]
[1772722096509,3.03263538,90.369,90.301,3.04948945]
[1772722096806,3.03263538,90.398,90.302,3.04948945]
[1772722097103,3.03263538,90.403,90.316,3.04948945]
[1772722097410,3.03263538,90.399,90.324,3.04948945]
[1772722097601,3.03263538,90.397,90.327,0.28432314]
[1772722097915,3.03263538,90.397,90.329,3.04948945]
[1772722098206,3.03263538,90.397,90.331,3.04948945]
[1772722098417,3.03263538,90.412,90.331,3.04948945]
[1772722098595,3.03263538,90.41,90.341,3.04948945]
[1772722098791,3.03760396,90.409,90.341,3.04948945]
[1772722099106,3.03760396,90.423,90.354,0.28432314]
[1772722099305,3.03760396,90.421,90.361,2.98461412]
[1772722099491,11.05925549,90.422,90.361,2.98461412]
[1772722099684,11.18114385,90.44,90.328,4.80091045]
[1772722099685,3.03760396,90.432,90.365,2.98461412]
[1772722099886,3.3219271,90.429,90.362,38.73309576]
[1772722100088,3.03760396,90.429,90.363,2.98461412]
[1772722100293,3.03760396,90.419,90.362,11.06659879]
[1772722100605,3.03760396,90.432,90.363,2.98461412]
[1772722100796,0.1,90.44,90.366,3.26893726]
[1772722100993,3.03760396,90.438,90.366,3.26893726]
[1772722101209,3.03760396,90.429,90.366,2.98461412]
[1772722101407,11.08114385,90.43,90.366,2.98461412]
[1772722101408,3.03760396,90.415,90.366,2.98461412]
[1772722101594,11.06023403,90.414,90.367,11.06598647]
[1772722102325,3.03760396,90.413,90.367,11.06598647]
[1772722102618,3.03760396,90.419,90.367,11.06598647]
[1772722102803,11.05901088,90.424,90.323,44.28511823]
[1772722102804,3.03760396,90.407,90.359,11.06687943]
[1772722103116,3.03760396,90.399,90.346,11.06855865]
[1772722103321,3.03760396,90.395,90.346,11.06855865]
[1772722103525,3.69383402,90.417,90.347,2.98461412]
[1772722103526,3.03760396,90.416,90.347,2.98461412]
[1772722103691,3.69383402,90.417,90.333,88.5607532]
[1772722103692,3.03760396,90.414,90.35,3.26893726]
[1772722103899,3.03760396,90.411,90.35,3.26893726]
[1772722104096,3.03760396,90.399,90.338,11.06953884]
[1772722104407,3.03760396,90.399,90.338,38.74338594]
[1772722104610,3.03760396,90.399,90.339,2.98461412]
[1772722105120,3.03760396,90.379,90.322,2.98461412]
[1772722105411,3.03760396,90.379,90.3,44.29674563]
[1772722105412,3.03760396,90.369,90.315,11.07227287]
[1772722105590,3.03760396,90.369,90.315,38.75316751]
[1772722105796,3.03760396,90.367,90.316,2.98461412]
[1772722105991,14.11874781,90.41,90.321,2.98461412]
[1772722106198,14.09661484,90.424,90.331,2.98461412]
[1772722106414,3.03760396,90.423,90.341,2.98461412]
[1772722106618,14.118828,90.429,90.347,3.0767146]
[1772722106914,11.05852169,90.428,90.371,3.0767146]
[1772722107213,14.11767386,90.439,90.379,3.0767146]
[1772722107522,3.06041302,90.436,90.379,3.0767146]
[1772722107811,0.1,90.44,90.381,3.36103774]
[1772722108110,3.06041302,90.438,90.381,3.0767146]
[1772722108410,3.06041302,90.436,90.381,3.0767146]
[1772722109107,11.05717666,90.439,90.382,0.28432314]
[1772722109411,11.05717666,90.439,90.369,3.69383402]
[1772722109412,3.06041302,90.419,90.353,3.0767146]
[1772722109619,3.06041302,90.417,90.353,3.0767146]
[1772722109813,3.06041302,90.409,90.354,11.06757863]
[1772722110021,3.06041302,90.405,90.354,11.06757863]
[1772722110221,3.06041302,90.397,90.354,11.06757863]
[1772722110401,3.06041302,90.395,90.354,11.06757863]
[1772722110806,0.14216157,90.386,90.339,11.0694163]
[1772722111099,3.06041302,90.385,90.339,11.0694163]
[1772722111294,3.06041302,90.385,90.339,38.74295707]
[1772722111518,3.06041302,90.385,90.34,3.0767146]
[1772722111730,11.06390511,90.384,90.341,11.06917125]
[1772722111931,14.12248229,90.399,90.342,3.0767146]
[1772722112219,3.06041302,90.413,90.342,3.0767146]
[1772722112514,38.71167543,90.412,90.35,3.0767146]
[1772722112710,38.71167543,90.412,90.352,3.0767146]
[1772722113021,3.06041302,90.409,90.352,3.0767146]
[1772722113924,3.06041302,90.407,90.353,11.06770112]
[1772722114121,3.06041302,90.407,90.354,3.0767146]
[1772722114305,3.06041302,90.426,90.356,3.69383402]
[1772722114625,3.06041302,90.424,90.361,3.0767146]
[1772722115730,3.06041302,90.395,90.353,11.06770112]
[1772722116028,3.06041302,90.393,90.332,3.0767146]
[1772722116210,3.06041302,90.379,90.317,3.0767146]
[1772722116413,3.06041302,90.377,90.317,3.0767146]
[1772722116759,3.06041302,90.375,90.317,3.0767146]
[1772722117207,3.06041302,90.386,90.317,3.0767146]
[1772722117407,3.06041302,90.369,90.313,38.75411069]
[1772722117823,3.06041302,90.365,90.314,3.0767146]
[1772722118218,3.06041302,90.349,90.282,3.0767146]
[1772722118415,3.06041302,90.337,90.282,3.0767146]
[1772722118609,3.06041302,90.337,90.23,1.30827884]
[1772722118610,3.06041302,90.323,90.231,188.40531524]
[1772722118806,3.34473616,90.316,90.234,3.69383402]
[1772722119010,3.20257459,90.316,90.234,3.69383402]
[1772722119209,3.69383402,90.34,90.234,3.69383402]
[1772722119210,11.08114385,90.34,90.238,3.69383402]
[1772722119406,3.06041302,90.339,90.236,4.82477569]
[1772722119612,3.06041302,90.339,90.237,1.59317854]
[1772722119613,4.82477569,90.338,90.237,1.59317854]
[1772722119811,3.06041302,90.327,90.238,127.44076773]
[1772722120019,3.06041302,90.34,90.246,5.10909883]
[1772722120226,3.06041302,90.367,90.254,8.51860971]
[1772722120420,3.06041302,90.359,90.26,0.28432314]
[1772722120713,3.69383402,90.38,90.27,3.0767146]
[1772722120914,3.06041302,90.401,90.288,3.69383402]
[1772722121115,11.08114385,90.43,90.311,7.90149029]
[1772722121320,27.64599851,90.429,90.321,3.0767146]
[1772722121514,27.64599851,90.429,90.309,0.14216157]
[1772722121515,27.64599851,90.429,90.337,3.0767146]
[1772722121714,11.05717666,90.439,90.35,0.28432314]
[1772722121924,0.1,90.44,90.356,3.36103774]
[1772722123212,0.1,90.44,90.363,3.0767146]
[1772722123408,2.52343662,90.439,90.373,3.0767146]
[1772722124029,0.28432314,90.436,90.375,3.0767146]
[1772722124256,11.05729892,90.438,90.377,3.0767146]
[1772722124431,11.05729892,90.438,90.376,0.28432314]
[1772722124432,11.05717666,90.439,90.381,3.0767146]
[1772722125214,2.52773109,90.437,90.381,3.0767146]
[1772722125431,11.05717666,90.439,90.381,3.0767146]
[1772722125632,11.05717666,90.439,90.374,38.72795272]
[1772722125633,0.1,90.44,90.383,3.0767146]
[1772722125818,0.1,90.44,90.392,3.0767146]
[1772722126014,2.52984141,90.439,90.392,3.0767146]
[1772722126214,2.52984141,90.427,90.38,11.06439477]
[1772722126428,11.08114385,90.42,90.38,11.06439477]
[1772722126631,2.52984141,90.409,90.359,11.06696621]
[1772722127134,11.08114385,90.4,90.344,3.0767146]
[1772722127458,2.53118752,90.416,90.344,3.0767146]
[1772722127735,2.53118752,90.409,90.344,3.0767146]
[1772722127938,2.53251818,90.407,90.346,3.0767146]
[1772722128159,11.06096805,90.408,90.348,3.0767146]
[1772722128440,11.05937779,90.421,90.362,3.0767146]
[1772722128615,2.53251818,90.42,90.362,3.0767146]
[1772722128814,13.59267726,90.436,90.371,0.28432314]
[1772722129032,41.2365359,90.436,90.372,3.05146173]
[1772722129239,2.53513381,90.435,90.372,3.05146173]
[1772722130239,0.1,90.44,90.382,3.05146173]
[1772722130437,0.1,90.44,90.384,3.05146173]
[1772722130644,0.1,90.44,90.394,3.05146173]
[1772722130937,1e-08,90.46,90.416,0.28432314]
[1772722131127,1e-08,90.46,90.421,3.05146173]
[1772722131944,2.53894567,90.505,90.425,3.05146173]
[1772722132124,2.53894567,90.489,90.427,3.05146173]
[1772722132540,2.53894567,90.479,90.427,3.05146173]
[1772722132715,2.54018721,90.457,90.401,3.05146173]
[1772722133536,11.08114385,90.46,90.401,3.05146173]
[1772722133537,0.28432314,90.456,90.401,3.05146173]
[1772722133740,2.5414145,90.447,90.401,3.05146173]
[1772722133952,2.5414145,90.447,90.341,1.10691712]
[1772722133953,2.5414145,90.429,90.365,11.06623139]
[1772722134246,3.69383402,90.44,90.365,11.06623139]
[1772722134247,2.5414145,90.416,90.366,3.05146173]
[1772722134633,2.5414145,90.409,90.365,11.06623139]
[1772722135151,2.54262768,90.389,90.34,11.06929377]
[1772722135326,2.54262768,90.389,90.34,38.74252821]
[1772722135530,2.54262768,90.389,90.34,11.06929377]
[1772722135727,2.54382694,90.412,90.341,3.05146173]
[1772722135927,2.54382694,90.412,90.347,3.05146173]
[1772722136145,2.54382694,90.412,90.329,3.69383402]
[1772722136146,2.54382694,90.41,90.351,3.05146173]
[1772722136346,2.54382694,90.41,90.35,38.73824017]
[1772722136347,2.54382694,90.399,90.35,11.06806862]
[1772722136925,38.71210361,90.411,90.34,11.06929377]
[1772722136926,2.54501242,90.389,90.34,11.06929377]
[1772722137962,2.54618428,90.369,90.31,14.1244326]
[1772722138132,11.06696621,90.359,90.312,11.07272566]
[1772722138332,11.08114385,90.34,90.295,3.05146173]
[1772722138533,2.54618428,90.349,90.295,3.05146173]
[1772722139053,11.09369817,90.34,90.295,3.05146173]
[1772722139228,2.83166582,90.348,90.295,3.05146173]
[1772722139427,2.83166582,90.339,90.281,3.05146173]
[1772722139846,11.09369817,90.33,90.281,3.05146173]
[1772722140036,2.83166582,90.339,90.281,3.05146173]
[1772722140229,0.28432314,90.336,90.283,3.05146173]
[1772722140850,0.28432314,90.336,90.282,38.76741764]
[1772722140851,2.83394286,90.329,90.242,3.05146173]
[1772722141033,2.54961972,90.319,90.242,3.05146173]
[1772722141229,11.06953884,90.338,90.25,3.05146173]
[1772722141545,0.28432314,90.337,90.267,0.28432314]
[1772722141752,0.28432314,90.337,90.272,3.05146173]
[1772722141952,0.28432314,90.329,90.272,3.05146173]
[1772722142150,4.82477569,90.355,90.244,3.69383402]
[1772722142151,11.06978391,90.336,90.275,0.28432314]
[1772722142354,11.06978391,90.336,90.282,3.05146173]
[1772722142556,2.55073866,90.309,90.243,3.05146173]
[1772722142756,2.55184475,90.299,90.243,41.83563335]
[1772722142955,3.69383402,90.32,90.247,0.14216157]
[1772722142956,2.55184475,90.312,90.247,0.14216157]
[1772722143146,11.09369817,90.32,90.252,3.05146173]
[1772722143342,11.09369817,90.28,90.231,3.05146173]
[1772722143545,3.69383402,90.31,90.22,0.2]
[1772722143546,2.55184475,90.269,90.22,0.2]
[1772722143745,13.64554292,90.26,90.22,0.2]
[1772722144061,3.69383402,90.29,90.221,11.08383804]
[1772722144062,2.55293814,90.269,90.221,11.08383804]
[1772722144241,38.77343022,90.268,90.226,11.0832526]
[1772722144449,11.07812292,90.268,90.231,11.77796077]
[1772722144756,11.09369817,90.26,90.23,0.17529508]
[1772722144959,0.02470238,90.267,90.23,0.17529508]
[1772722145457,11.07812292,90.268,90.231,14.31854899]
[1772722145961,38.77343022,90.268,90.231,3.23588339]
[1772722146261,38.77343022,90.268,90.23,0.17529508]
[1772722146438,11.07812292,90.268,90.23,11.25802926]
[1772722146641,11.07812292,90.268,90.231,3.23588339]
[1772722146959,11.09369817,90.32,90.234,3.23588339]
[1772722147163,11.09369817,90.31,90.236,3.23588339]
[1772722147339,0.14216157,90.309,90.236,3.23588339]
[1772722147660,0.14216157,90.299,90.236,3.23588339]
[1772722148061,11.09369817,90.29,90.236,3.23588339]
[1772722148237,11.09369817,90.3,90.236,3.23588339]
[1772722148443,11.21770787,90.289,90.238,3.23588339]
[1772722148650,38.76441205,90.289,90.238,3.23588339]
[1772722148955,0.28432314,90.279,90.231,11.0826656]
[1772722149148,0.28432314,90.279,90.23,0.17529508]
[1772722149149,0.28432314,90.269,90.23,0.17529508]
[1772722149535,0.28432314,90.279,90.232,3.23588339]
[1772722150057,38.76441205,90.289,90.232,3.23588339]
[1772722150638,38.76441205,90.289,90.23,0.17529508]
[1772722150639,11.0755463,90.289,90.234,3.23588339]
[1772722150956,11.09369817,90.28,90.234,3.23588339]
[1772722151153,38.76441205,90.289,90.234,3.23588339]
[1772722152239,11.09369817,90.32,90.236,3.23588339]
[1772722152443,11.09369817,90.32,90.239,3.23588339]
[1772722152743,38.75153621,90.319,90.251,3.23588339]
[1772722153341,11.07186749,90.319,90.251,3.23588339]
[1772722153546,38.75153621,90.319,90.251,3.23588339]
[1772722153962,0.28432314,90.318,90.251,3.23588339]
[1772722154547,0.28432314,90.299,90.251,3.23588339]
[1772722154742,11.07186749,90.319,90.253,3.23588339]
[1772722154943,0.28432314,90.318,90.253,3.23588339]
[1772722155362,4.82477569,90.345,90.252,38.78030402]
[1772722155363,11.0694163,90.339,90.256,0.28432314]
[1772722155544,11.0694163,90.339,90.263,3.23588339]
[1772722155763,88.51007997,90.386,90.275,3.23588339]
[1772722155764,11.06880391,90.344,90.275,3.23588339]
[1772722156050,11.06807131,90.35,90.291,3.23588339]
[1772722156362,11.09369817,90.39,90.299,3.23588339]
[1772722156560,11.09369817,90.38,90.301,3.23588339]
[1772722156777,38.72581018,90.379,90.303,3.23588339]
[1772722157070,11.09369817,90.35,90.292,3.23588339]
[1772722157239,0.28432314,90.359,90.293,3.23588339]
[1772722157839,0.14216157,90.359,90.293,3.23588339]
[1772722158060,11.09369817,90.33,90.287,11.07568553]
[1772722158264,0.28432314,90.319,90.234,3.23588339]
[1772722158472,4.82477569,90.345,90.234,3.23588339]
[1772722158473,0.28432314,90.309,90.234,3.23588339]
[1772722158681,0.28432314,90.309,90.237,3.52020653]
[1772722158971,38.75625636,90.308,90.242,3.23588339]
[1772722159270,11.09369817,90.3,90.242,3.23588339]
[1772722159561,0.28432314,90.307,90.242,3.23588339]
[1772722159861,11.09369817,90.3,90.242,3.23588339]
[1772722160052,0.28432314,90.307,90.242,3.23588339]
[1772722160361,11.09369817,90.32,90.244,3.23588339]
[1772722160558,11.09369817,90.32,90.243,0.28432314]
[1772722160559,11.09369817,90.32,90.252,3.23588339]
[1772722160871,0.28432314,90.319,90.252,3.23588339]
[1772722161048,0.28432314,90.309,90.254,3.23588339]
[1772722161441,11.09369817,90.29,90.242,3.23588339]
[1772722161638,0.28432314,90.299,90.242,3.23588339]
[1772722162569,11.09369817,90.3,90.242,3.23588339]
[1772722162777,0.28432314,90.299,90.242,3.23588339]
[1772722163150,11.0744424,90.298,90.244,3.23588339]
[1772722163661,11.09369817,90.31,90.246,3.23588339]
[1772722163969,0.28432314,90.309,90.246,3.23588339]
[1772722164260,0.28432314,90.299,90.246,3.23588339]
[1772722164467,11.09369817,90.31,90.246,3.23588339]
[1772722164768,11.09369817,90.29,90.246,3.23588339]
[1772722164945,11.09369817,90.27,90.232,3.23588339]
[1772722165148,8.51860971,90.296,90.23,0.17529508]
[1772722165348,11.09369817,90.27,90.23,0.17529508]
[1772722165654,8.51860971,90.296,90.231,11.0826656]
[1772722165655,11.09369817,90.28,90.231,11.0826656]
[1772722165849,11.09369817,90.28,90.232,3.23588339]
[1772722166059,38.76011914,90.299,90.232,3.23588339]
[1772722166664,11.09369817,90.29,90.232,3.23588339]
[1772722166852,38.76011914,90.299,90.232,3.23588339]
[1772722167053,44.27085219,90.353,90.234,3.23588339]
[1772722167257,11.0694163,90.339,90.239,3.52020653]
[1772722167554,11.09369817,90.31,90.239,3.52020653]
[1772722167958,11.09369817,90.33,90.239,3.52020653]
[1772722168160,11.09369817,90.32,90.239,3.52020653]
[1772722168359,11.09369817,90.33,90.239,3.52020653]
[1772722168756,0.28432314,90.309,90.239,3.52020653]
[1772722169552,0.28432314,90.307,90.241,3.52020653]
[1772722169762,0.28432314,90.307,90.241,3.23588339]
[1772722169967,11.09369817,90.29,90.241,3.23588339]
[1772722170277,11.09369817,90.27,90.226,3.23588339]
[1772722170455,11.09369817,90.27,90.231,11.0826656]
[1772722171064,0.28432314,90.269,90.213,3.23588339]
[1772722171371,0.28432314,90.279,90.231,3.23588339]
[1772722171550,0.28432314,90.277,90.231,3.23588339]
[1772722171749,0.28432314,90.277,90.232,11.08254277]
[1772722171950,11.07579164,90.287,90.233,3.23588339]
[1772722172170,38.76527074,90.287,90.233,3.23588339]
[1772722172353,11.09369817,90.29,90.233,3.23588339]
[1772722172875,11.09369817,90.28,90.233,3.23588339]
[1772722173169,11.09369817,90.28,90.232,11.08254277]
[1772722173371,11.09369817,90.28,90.233,3.23588339]
[1772722173560,3.69383402,90.292,90.235,3.23588339]
[1772722173967,11.09369817,90.28,90.235,3.23588339]
[1772722174164,11.09369817,90.28,90.23,0.17529508]
[1772722174165,11.09369817,90.26,90.23,1e-08]
[1772722174366,11.09369817,90.27,90.23,1e-08]
[1772722174565,11.09369817,90.26,90.23,1e-08]
[1772722175560,0.28432314,90.259,90.23,1e-08]
[1772722175764,0.28432314,90.257,90.23,1e-08]
[1772722176271,0.28432314,90.249,90.22,1e-08]
[1772722176671,0.28432314,90.257,90.22,1e-08]
[1772722177253,0.28432314,90.249,90.22,1e-08]
[1772722177458,11.09369817,90.23,90.22,1e-08]
[1772722177667,88.60829594,90.285,90.221,3.23588339]
[1772722177868,0.28432314,90.259,90.22,1e-08]
[1772722178069,11.09369817,90.26,90.2,0.2]
[1772722178070,0.28432314,90.229,90.2,0.2]
[1772722178271,0.28432314,90.229,90.182,3.23588339]
[1772722178464,11.09369817,90.21,90.17,3.23588339]
[1772722178778,14.78753219,90.24,90.17,3.23588339]
[1772722178779,0.28432314,90.229,90.17,3.23588339]
[1772722178982,11.09369817,90.21,90.17,3.23588339]
[1772722179175,14.78753219,90.24,90.17,3.23588339]
[1772722179176,0.28432314,90.229,90.17,3.23588339]
[1772722179677,0.28432314,90.219,90.17,3.23588339]
[1772722179877,11.08426256,90.218,90.172,3.23588339]